[Event "*** Titled Tuesday Blitz"]
[Site "Chess.com"]
[Date "2020.11.03"]
[Round "2"]
[White "ecwinslow"]
[Black "Forantes"]
[Result "0-1"]
[WhiteElo "2196"]
[BlackElo "2415"]
[TimeControl "180+1"]
[EndTime "10:19:59 PST"]
[Termination "Forantes won by resignation"]

1. e4 {[%clk 0:03:00.9]} 1... c5 {[%clk 0:02:59.4]} 2. Nf3 {[%clk 0:02:59.8]}
2... Nc6 {[%clk 0:02:59.8]} 3. d4 {[%clk 0:02:59.6]} 3... cxd4 {[%clk
0:03:00.7]} 4. Nxd4 {[%clk 0:03:00]} 4... e5 {[%clk 0:03:01.2]} 5. Nb5 {[%clk
0:02:59.4]} 5... a6 {[%clk 0:03:01.5]} 6. Nd6+ {[%clk 0:02:57.9]} 6... Bxd6
{[%clk 0:03:02.1]} 7. Qxd6 {[%clk 0:02:58.3]} 7... Qf6 {[%clk 0:03:02.8]} 8.
Qxf6 {[%clk 0:02:58.3]} 8... Nxf6 {[%clk 0:03:03.7]} 9. Nc3 {[%clk 0:02:57.4]}
9... Nb4 {[%clk 0:03:03.5]} 10. Bd3 {[%clk 0:02:56.2]} 10... d6 {[%clk
0:03:03.5]} 11. Bg5 {[%clk 0:02:52.6]} 11... Be6 {[%clk 0:03:02.2]} 12. O-O-O
{[%clk 0:02:37.1]} 12... Rc8 {[%clk 0:02:56.9]} 13. Bxf6 {[%clk 0:02:32.9]}
13... gxf6 {[%clk 0:02:57.1]} 14. a3 {[%clk 0:02:33.1]} 14... Nc6 {[%clk
0:02:54.9]} 15. Be2 {[%clk 0:02:27.1]} 15... Nd4 {[%clk 0:02:53.1]} 16. Rhe1
{[%clk 0:02:10.1]} 16... f5 {[%clk 0:02:52.8]} 17. exf5 {[%clk 0:01:59.3]} 17...
Bxf5 {[%clk 0:02:53.7]} 18. Bd3 {[%clk 0:01:59.1]} 18... Be6 {[%clk 0:02:48.5]}
19. Ne4 {[%clk 0:01:55.9]} 19... Ke7 {[%clk 0:02:42.8]} 20. c3 {[%clk
0:01:55.3]} 20... Bb3 {[%clk 0:02:10.5]} 21. Rd2 {[%clk 0:01:54.4]} 21... Ba4
{[%clk 0:02:04.9]} 22. Kb1 {[%clk 0:01:51.7]} 22... Ne6 {[%clk 0:01:57.2]} 23.
Nxd6 {[%clk 0:01:42.7]} 23... Rcd8 {[%clk 0:01:33.8]} 24. Nxb7 {[%clk
0:01:40.5]} 24... Rd7 {[%clk 0:01:33.4]} 25. Na5 {[%clk 0:01:35.2]} 25... Rhd8
{[%clk 0:01:23.5]} 26. Re3 {[%clk 0:01:24.1]} 26... e4 {[%clk 0:01:03.9]} 27. b3
{[%clk 0:01:22.5]} 27... Rxd3 {[%clk 0:00:55.8]} 28. Rexd3 {[%clk 0:01:20.2]}
28... Rxd3 {[%clk 0:00:38.2]} 29. Rxd3 {[%clk 0:01:18.7]} 29... exd3 {[%clk
0:00:38.9]} 30. bxa4 {[%clk 0:01:18.9]} 30... Nc5 {[%clk 0:00:36.6]} 31. Kc1
{[%clk 0:01:15.3]} 31... Ne4 {[%clk 0:00:35.3]} 32. f3 {[%clk 0:01:09]} 32...
Nxc3 {[%clk 0:00:23.7]} 33. Kd2 {[%clk 0:01:08.5]} 33... Nxa4 {[%clk 0:00:24.3]}
34. Kxd3 {[%clk 0:01:08.3]} 34... Kd6 {[%clk 0:00:25.2]} 35. Nb3 {[%clk
0:01:05.1]} 35... Kd5 {[%clk 0:00:24.5]} 36. g4 {[%clk 0:01:04]} 36... Nb2+
{[%clk 0:00:24.4]} 37. Ke3 {[%clk 0:00:59.5]} 37... Nc4+ {[%clk 0:00:24.6]} 38.
Kf4 {[%clk 0:00:57.3]} 38... Nxa3 {[%clk 0:00:25.5]} 39. Kf5 {[%clk 0:00:52.1]}
39... Nb5 {[%clk 0:00:25.7]} 40. Kf6 {[%clk 0:00:50.4]} 40... Nd4 {[%clk
0:00:26.1]} 41. Na5 {[%clk 0:00:36.8]} 41... Nxf3 {[%clk 0:00:24.6]} 42. Kxf7
{[%clk 0:00:34.6]} 42... Nxh2 {[%clk 0:00:25]} 43. g5 {[%clk 0:00:33.5]} 43...
Nf3 {[%clk 0:00:25.3]} 44. Kf6 {[%clk 0:00:33.5]} 44... Nd4 {[%clk 0:00:08.7]}
45. Kg7 {[%clk 0:00:29.8]} 45... Ne6+ {[%clk 0:00:09.1]} 46. Kh6 {[%clk
0:00:29.8]} 46... Kc5 {[%clk 0:00:08.3]} 47. Kxh7 {[%clk 0:00:22.2]} 47... Nxg5+
{[%clk 0:00:08.1]} 48. Kg6 {[%clk 0:00:22.8]} 48... Ne4 {[%clk 0:00:06.9]} 49.
Kf5 {[%clk 0:00:23.2]} 49... Nd6+ {[%clk 0:00:05.4]} 50. Kf4 {[%clk 0:00:20.1]}
50... Kb5 {[%clk 0:00:03.4]} 51. Nb3 {[%clk 0:00:17.8]} 51... Kb4 {[%clk
0:00:03.8]} 52. Nc1 {[%clk 0:00:16.7]} 52... a5 {[%clk 0:00:03.9]} 53. Ke3
{[%clk 0:00:15.8]} 53... Kc3 {[%clk 0:00:04.2]} 54. Na2+ {[%clk 0:00:14.2]}
54... Kb2 {[%clk 0:00:04.1]} 55. Kd3 {[%clk 0:00:13.2]} 55... Kxa2 {[%clk
0:00:04.4]} 56. Kc3 {[%clk 0:00:13.8]} 56... Nb7 {[%clk 0:00:04.7]} 57. Kc4
{[%clk 0:00:12.9]} 57... a4 {[%clk 0:00:05.2]} 0-1

[Event "*** Titled Tuesday Blitz"]
[Site "Chess.com"]
[Date "2020.11.03"]
[Round "2"]
[White "Infernal_XaM"]
[Black "Nemsko"]
[Result "0-1"]
[WhiteElo "2815"]
[BlackElo "2366"]
[TimeControl "180+1"]
[EndTime "10:20:00 PST"]
[Termination "Nemsko won by checkmate"]

1. d4 {[%clk 0:03:00.9]} 1... Nf6 {[%clk 0:02:59.2]} 2. c4 {[%clk 0:03:01.8]}
2... e6 {[%clk 0:02:59.4]} 3. Nc3 {[%clk 0:03:01.7]} 3... Bb4 {[%clk 0:02:57.6]}
4. Qa4 {[%clk 0:03:02.2]} 4... a5 {[%clk 0:02:55.3]} 5. Bg5 {[%clk 0:02:57.6]}
5... h6 {[%clk 0:02:50.7]} 6. Bxf6 {[%clk 0:02:55.2]} 6... Qxf6 {[%clk
0:02:51.6]} 7. Nf3 {[%clk 0:02:55.5]} 7... Nc6 {[%clk 0:02:45.1]} 8. a3 {[%clk
0:02:49.4]} 8... Bxc3+ {[%clk 0:02:36.7]} 9. bxc3 {[%clk 0:02:49.2]} 9... O-O
{[%clk 0:02:37.1]} 10. e4 {[%clk 0:02:48.6]} 10... d6 {[%clk 0:02:32.1]} 11. Bd3
{[%clk 0:02:47.2]} 11... e5 {[%clk 0:02:25.7]} 12. d5 {[%clk 0:02:32.9]} 12...
Ne7 {[%clk 0:02:24.6]} 13. O-O {[%clk 0:02:31.4]} 13... Ng6 {[%clk 0:02:24.6]}
14. Ne1 {[%clk 0:02:24.6]} 14... Nf4 {[%clk 0:02:23.8]} 15. g3 {[%clk
0:02:22.2]} 15... Nxd3 {[%clk 0:02:06.3]} 16. Nxd3 {[%clk 0:02:21.9]} 16... Bh3
{[%clk 0:02:06.8]} 17. f3 {[%clk 0:02:11.7]} 17... Bxf1 {[%clk 0:02:05.9]} 18.
Rxf1 {[%clk 0:02:11.9]} 18... Rfc8 {[%clk 0:02:03.2]} 19. c5 {[%clk 0:02:05]}
19... Qe7 {[%clk 0:01:58.6]} 20. Qb5 {[%clk 0:01:59]} 20... c6 {[%clk
0:01:54.2]} 21. cxd6 {[%clk 0:01:42.8]} 21... Qxd6 {[%clk 0:01:54]} 22. Qb6
{[%clk 0:01:43.2]} 22... f6 {[%clk 0:01:27.5]} 23. c4 {[%clk 0:01:39.9]} 23...
Qxa3 {[%clk 0:01:24.3]} 24. Nf2 {[%clk 0:01:26.8]} 24... Qxf3 {[%clk 0:01:14.4]}
25. Qxb7 {[%clk 0:01:26.4]} 25... cxd5 {[%clk 0:01:03.3]} 26. exd5 {[%clk
0:01:23.1]} 26... Rab8 {[%clk 0:00:58.3]} 27. Qa6 {[%clk 0:01:20.3]} 27... Qa3
{[%clk 0:00:51.6]} 28. d6 {[%clk 0:01:07.1]} 28... Rd8 {[%clk 0:00:36.6]} 29.
Rd1 {[%clk 0:00:57.9]} 29... Qc5 {[%clk 0:00:30.9]} 30. d7 {[%clk 0:00:52.2]}
30... Rb2 {[%clk 0:00:21.8]} 31. Qe6+ {[%clk 0:00:51.8]} 31... Kh8 {[%clk
0:00:20.7]} 32. Qe8+ {[%clk 0:00:49.5]} 32... Kh7 {[%clk 0:00:21.1]} 33. Rf1
{[%clk 0:00:49.2]} 33... Qc7 {[%clk 0:00:16.7]} 34. Rd1 {[%clk 0:00:49]} 34...
Qb6 {[%clk 0:00:15.4]} 35. Rf1 {[%clk 0:00:47.7]} 35... Qc7 {[%clk 0:00:09.8]}
36. Rd1 {[%clk 0:00:35.7]} 36... Rb7 {[%clk 0:00:10.2]} 37. Ne4 {[%clk
0:00:19.7]} 37... Rxd7 {[%clk 0:00:07.2]} 38. Rf1 {[%clk 0:00:18.8]} 38... Re7
{[%clk 0:00:05]} 39. Qf8 {[%clk 0:00:17.5]} 39... Rf7 {[%clk 0:00:04.8]} 40. Qe8
{[%clk 0:00:16.8]} 40... Qe7 {[%clk 0:00:04.8]} 41. Qc6 {[%clk 0:00:16.3]} 41...
Rc7 {[%clk 0:00:04.7]} 42. Qd5 {[%clk 0:00:15.8]} 42... f5 {[%clk 0:00:04.7]}
43. Nd6 {[%clk 0:00:15.6]} 43... Rf6 {[%clk 0:00:03.8]} 44. Nxf5 {[%clk
0:00:15.7]} 44... Qc5+ {[%clk 0:00:04]} 45. Qxc5 {[%clk 0:00:15.5]} 45... Rxc5
{[%clk 0:00:04.9]} 46. g4 {[%clk 0:00:15.9]} 46... g6 {[%clk 0:00:04.5]} 47. Rd1
{[%clk 0:00:14.8]} 47... gxf5 {[%clk 0:00:04.5]} 48. Rd7+ {[%clk 0:00:15]} 48...
Kg6 {[%clk 0:00:04.6]} 49. Ra7 {[%clk 0:00:15.1]} 49... Rfc6 {[%clk 0:00:04.4]}
50. gxf5+ {[%clk 0:00:14.7]} 50... Kxf5 {[%clk 0:00:05.3]} 51. Rg7 {[%clk
0:00:14.6]} 51... Ke4 {[%clk 0:00:05.7]} 52. Rg4+ {[%clk 0:00:14.7]} 52... Kf5
{[%clk 0:00:06.2]} 53. Rg8 {[%clk 0:00:14.7]} 53... Rxc4 {[%clk 0:00:06.8]} 54.
Rf8+ {[%clk 0:00:15]} 54... Ke4 {[%clk 0:00:06.9]} 55. Kf2 {[%clk 0:00:15.9]}
55... a4 {[%clk 0:00:07]} 56. Kg3 {[%clk 0:00:16.8]} 56... Rc3+ {[%clk
0:00:06.9]} 57. Kg4 {[%clk 0:00:16.8]} 57... a3 {[%clk 0:00:07.5]} 58. Kh5
{[%clk 0:00:16.7]} 58... a2 {[%clk 0:00:07.3]} 59. h4 {[%clk 0:00:17.6]} 59...
a1=Q {[%clk 0:00:01.6]} 60. Rg8 {[%clk 0:00:17.4]} 60... Qd1+ {[%clk 0:00:01.4]}
61. Rg4+ {[%clk 0:00:17.6]} 61... Qxg4+ {[%clk 0:00:01.8]} 62. Kxg4 {[%clk
0:00:17.7]} 62... Rg6+ {[%clk 0:00:02.4]} 63. Kh5 {[%clk 0:00:18.1]} 63... Rg8
{[%clk 0:00:03]} 64. Kxh6 {[%clk 0:00:18.2]} 64... Rh3 {[%clk 0:00:02.9]} 65. h5
{[%clk 0:00:18.5]} 65... Rg1 {[%clk 0:00:03.2]} 66. Kh7 {[%clk 0:00:18.7]} 66...
Rxh5# {[%clk 0:00:03.8]} 0-1

[Event "*** Titled Tuesday Blitz"]
[Site "Chess.com"]
[Date "2020.11.03"]
[Round "2"]
[White "karwowskikacper"]
[Black "emiliochess"]
[Result "1-0"]
[WhiteElo "2460"]
[BlackElo "2273"]
[TimeControl "180+1"]
[EndTime "10:20:00 PST"]
[Termination "karwowskikacper won by resignation"]

1. e4 {[%clk 0:01:39.9]} 1... c6 {[%clk 0:02:58]} 2. d4 {[%clk 0:01:39.8]} 2...
d5 {[%clk 0:02:58.9]} 3. exd5 {[%clk 0:01:40.7]} 3... cxd5 {[%clk 0:02:59.8]} 4.
c4 {[%clk 0:01:41.6]} 4... Nf6 {[%clk 0:02:59.7]} 5. Nc3 {[%clk 0:01:42.5]} 5...
e6 {[%clk 0:02:59.7]} 6. Nf3 {[%clk 0:01:42.4]} 6... Nc6 {[%clk 0:02:59.8]} 7.
cxd5 {[%clk 0:01:39.8]} 7... Nxd5 {[%clk 0:03:00.7]} 8. Bd3 {[%clk 0:01:40.2]}
8... Be7 {[%clk 0:02:58.9]} 9. O-O {[%clk 0:01:40.4]} 9... a6 {[%clk 0:02:58.6]}
10. Re1 {[%clk 0:01:37.6]} 10... Bf6 {[%clk 0:02:56.9]} 11. Ne4 {[%clk
0:01:32.1]} 11... Be7 {[%clk 0:02:00.5]} 12. a3 {[%clk 0:01:29.1]} 12... b6
{[%clk 0:01:59.4]} 13. Bg5 {[%clk 0:01:11.1]} 13... h6 {[%clk 0:01:52]} 14. Bxe7
{[%clk 0:01:03.1]} 14... Qxe7 {[%clk 0:01:52.9]} 15. Rc1 {[%clk 0:01:02.8]}
15... Bb7 {[%clk 0:01:52.5]} 16. Qa4 {[%clk 0:00:54.7]} 16... b5 {[%clk
0:01:43.9]} 17. Qb3 {[%clk 0:00:49.4]} 17... O-O {[%clk 0:01:35.4]} 18. Nc5
{[%clk 0:00:48.9]} 18... Rab8 {[%clk 0:01:27.4]} 19. Nxb7 {[%clk 0:00:44]} 19...
Qxb7 {[%clk 0:01:28.3]} 20. Be4 {[%clk 0:00:44.1]} 20... Nce7 {[%clk 0:01:27.2]}
21. Ne5 {[%clk 0:00:40.6]} 21... Rbc8 {[%clk 0:01:19.5]} 22. Rxc8 {[%clk
0:00:30.4]} 22... Qxc8 {[%clk 0:01:12.8]} 23. g3 {[%clk 0:00:26.1]} 23... Nf6
{[%clk 0:01:10.3]} 24. Bf3 {[%clk 0:00:20.4]} 24... Ned5 {[%clk 0:01:10.2]} 25.
Nd3 {[%clk 0:00:19.4]} 25... Qc4 {[%clk 0:00:59.8]} 26. Qxc4 {[%clk 0:00:17.8]}
26... bxc4 {[%clk 0:01:00.7]} 27. Nc5 {[%clk 0:00:18.3]} 27... Rb8 {[%clk
0:00:55.4]} 28. Rc1 {[%clk 0:00:18.2]} 28... Rxb2 {[%clk 0:00:53.5]} 29. Rxc4
{[%clk 0:00:18.7]} 29... Rb1+ {[%clk 0:00:51.4]} 30. Kg2 {[%clk 0:00:19]} 30...
Rb2 {[%clk 0:00:51.9]} 31. Bxd5 {[%clk 0:00:18.8]} 31... Nxd5 {[%clk 0:00:51.9]}
32. Ra4 {[%clk 0:00:19.3]} 32... Ne3+ {[%clk 0:00:47.7]} 33. Kf3 {[%clk
0:00:19.3]} 33... Nd1 {[%clk 0:00:45.5]} 34. Rxa6 {[%clk 0:00:10.3]} 34... Rxf2+
{[%clk 0:00:37.6]} 35. Ke4 {[%clk 0:00:10.7]} 35... Rxh2 {[%clk 0:00:36.2]} 36.
a4 {[%clk 0:00:09.5]} 36... Ra2 {[%clk 0:00:36.7]} 37. Ra8+ {[%clk 0:00:06.5]}
37... Kh7 {[%clk 0:00:35.5]} 38. a5 {[%clk 0:00:07]} 38... Kg6 {[%clk
0:00:24.3]} 39. a6 {[%clk 0:00:06.6]} 39... h5 {[%clk 0:00:19.5]} 40. Nd7 {[%clk
0:00:06.9]} 40... f6 {[%clk 0:00:18.3]} 41. a7 {[%clk 0:00:03.5]} 41... Nc3+
{[%clk 0:00:18.1]} 42. Kd3 {[%clk 0:00:03.5]} 42... Nb5 {[%clk 0:00:18.8]} 43.
Nf8+ {[%clk 0:00:03.9]} 43... Kf7 {[%clk 0:00:18.6]} 44. Nxe6 {[%clk 0:00:04.3]}
44... Rxa7 {[%clk 0:00:18.7]} 45. Rxa7+ {[%clk 0:00:04.3]} 45... Nxa7 {[%clk
0:00:19.6]} 46. Nf4 {[%clk 0:00:04.8]} 46... g6 {[%clk 0:00:19.1]} 47. d5 {[%clk
0:00:05.3]} 47... Ke7 {[%clk 0:00:18.5]} 48. Nxg6+ {[%clk 0:00:04.7]} 48... Kd6
{[%clk 0:00:18.7]} 49. Kc4 {[%clk 0:00:04.8]} 49... Nc8 {[%clk 0:00:18.3]} 50.
Nf4 {[%clk 0:00:04.6]} 50... Nb6+ {[%clk 0:00:18.8]} 51. Kd4 {[%clk 0:00:05.2]}
51... Na4 {[%clk 0:00:19.2]} 52. Nxh5 {[%clk 0:00:05.4]} 52... Nb2 {[%clk
0:00:19.7]} 53. Nxf6 {[%clk 0:00:05.8]} 53... Nd1 {[%clk 0:00:19.6]} 54. Ne4+
{[%clk 0:00:06.7]} 54... Kd7 {[%clk 0:00:18.9]} 55. Ke5 {[%clk 0:00:07.1]} 55...
Ne3 {[%clk 0:00:19]} 56. d6 {[%clk 0:00:06.4]} 56... Nc4+ {[%clk 0:00:18.5]} 57.
Kf6 {[%clk 0:00:04.6]} 57... Ne3 {[%clk 0:00:17.7]} 58. Kg5 {[%clk 0:00:04]}
58... Ke6 {[%clk 0:00:17.9]} 59. Kf4 {[%clk 0:00:04.5]} 59... Nd5+ {[%clk
0:00:17.8]} 60. Kf3 {[%clk 0:00:05.1]} 60... Ke5 {[%clk 0:00:18]} 61. d7 {[%clk
0:00:05.6]} 1-0

[Event "*** Titled Tuesday Blitz"]
[Site "Chess.com"]
[Date "2020.11.03"]
[Round "2"]
[White "enriquetejedor"]
[Black "szefru"]
[Result "1-0"]
[WhiteElo "2457"]
[BlackElo "2268"]
[TimeControl "180+1"]
[EndTime "10:20:02 PST"]
[Termination "enriquetejedor won by resignation"]

1. e4 {[%clk 0:02:56.5]} 1... Nf6 {[%clk 0:02:59.7]} 2. e5 {[%clk 0:02:56.7]}
2... Nd5 {[%clk 0:02:59.8]} 3. d4 {[%clk 0:02:57.3]} 3... d6 {[%clk 0:02:59.6]}
4. Nf3 {[%clk 0:02:57.3]} 4... g6 {[%clk 0:02:59.3]} 5. Be2 {[%clk 0:02:53.4]}
5... Bg7 {[%clk 0:02:58.8]} 6. exd6 {[%clk 0:02:46.5]} 6... cxd6 {[%clk
0:02:57.8]} 7. O-O {[%clk 0:02:45.7]} 7... O-O {[%clk 0:02:57.7]} 8. c4 {[%clk
0:02:46.1]} 8... Nb6 {[%clk 0:02:57.1]} 9. Nc3 {[%clk 0:02:45.3]} 9... Nc6
{[%clk 0:02:54.5]} 10. Be3 {[%clk 0:02:41.5]} 10... Bg4 {[%clk 0:02:54.4]} 11.
b3 {[%clk 0:02:39.6]} 11... e5 {[%clk 0:02:47.2]} 12. dxe5 {[%clk 0:02:37.8]}
12... dxe5 {[%clk 0:02:47.1]} 13. Rc1 {[%clk 0:02:17.3]} 13... Nd4 {[%clk
0:02:33.4]} 14. Nxd4 {[%clk 0:02:09]} 14... exd4 {[%clk 0:02:34.3]} 15. Bxg4
{[%clk 0:02:09]} 15... dxe3 {[%clk 0:02:13.9]} 16. fxe3 {[%clk 0:01:55]} 16...
Qg5 {[%clk 0:02:12]} 17. Qe2 {[%clk 0:01:32.4]} 17... Rfe8 {[%clk 0:02:03.5]}
18. e4 {[%clk 0:01:28.8]} 18... h5 {[%clk 0:01:23.9]} 19. Bf3 {[%clk 0:01:27.2]}
19... Nd7 {[%clk 0:01:22.9]} 20. Kh1 {[%clk 0:01:19.8]} 20... Ne5 {[%clk
0:01:22.5]} 21. Nd5 {[%clk 0:01:18.9]} 21... Rac8 {[%clk 0:01:17.7]} 22. Rcd1
{[%clk 0:01:17.1]} 22... Ng4 {[%clk 0:01:10.8]} 23. h3 {[%clk 0:00:47.5]} 23...
Be5 {[%clk 0:00:53]} 24. Bxg4 {[%clk 0:00:40]} 24... hxg4 {[%clk 0:00:49.6]} 25.
Qxg4 {[%clk 0:00:38.9]} 25... Qxg4 {[%clk 0:00:47.5]} 26. hxg4 {[%clk
0:00:39.2]} 26... Kg7 {[%clk 0:00:48]} 27. Rf3 {[%clk 0:00:38.1]} 27... Bd6
{[%clk 0:00:44.7]} 28. Re1 {[%clk 0:00:36.8]} 28... Bc5 {[%clk 0:00:43.6]} 29.
Rh3 {[%clk 0:00:31.8]} 29... Re5 {[%clk 0:00:41.1]} 30. Nf4 {[%clk 0:00:26.4]}
30... Bb4 {[%clk 0:00:38.8]} 31. Re2 {[%clk 0:00:25.7]} 31... Ba5 {[%clk
0:00:37.7]} 32. Nd3 {[%clk 0:00:23.1]} 32... Rg5 {[%clk 0:00:37.8]} 33. Rg3
{[%clk 0:00:21.1]} 33... Bb6 {[%clk 0:00:35]} 34. Kh2 {[%clk 0:00:15.9]} 34...
Bc7 {[%clk 0:00:34.3]} 35. e5 {[%clk 0:00:15.3]} 35... Re8 {[%clk 0:00:32]} 36.
a3 {[%clk 0:00:11.7]} 36... Bxe5 {[%clk 0:00:28.1]} 37. Nxe5 {[%clk 0:00:11.7]}
37... Rgxe5 {[%clk 0:00:29]} 38. Rxe5 {[%clk 0:00:12.6]} 38... Rxe5 {[%clk
0:00:29.6]} 39. Rd3 {[%clk 0:00:13.1]} 39... Re7 {[%clk 0:00:28.1]} 40. Kg3
{[%clk 0:00:13]} 40... Kf6 {[%clk 0:00:27.4]} 41. b4 {[%clk 0:00:12.6]} 41...
Kg5 {[%clk 0:00:26.7]} 42. Rd5+ {[%clk 0:00:12.7]} 42... f5 {[%clk 0:00:26.9]}
43. gxf5 {[%clk 0:00:12.8]} 43... gxf5 {[%clk 0:00:27.8]} 44. Rd3 {[%clk
0:00:13.1]} 44... f4+ {[%clk 0:00:27.5]} 45. Kf3 {[%clk 0:00:13.5]} 45... Re1
{[%clk 0:00:26]} 46. Rd5+ {[%clk 0:00:13.4]} 46... Kf6 {[%clk 0:00:26.4]} 47.
Kxf4 {[%clk 0:00:13.8]} 47... Ra1 {[%clk 0:00:26.2]} 48. Rd3 {[%clk 0:00:13.5]}
48... Rf1+ {[%clk 0:00:25.6]} 49. Rf3 {[%clk 0:00:13.3]} 49... Rc1 {[%clk
0:00:26.2]} 50. Ke4+ {[%clk 0:00:12.4]} 50... Ke6 {[%clk 0:00:26.7]} 51. Kd4
{[%clk 0:00:12.8]} 51... Rg1 {[%clk 0:00:26.7]} 52. g3 {[%clk 0:00:12.4]} 52...
Rd1+ {[%clk 0:00:25.4]} 53. Rd3 {[%clk 0:00:12.5]} 53... Rg1 {[%clk 0:00:24.6]}
54. c5 {[%clk 0:00:12.8]} 54... Kd7 {[%clk 0:00:20.5]} 55. Ke4+ {[%clk
0:00:12.7]} 55... Kc6 {[%clk 0:00:20.5]} 56. Kf5 {[%clk 0:00:13]} 56... a5
{[%clk 0:00:18.7]} 57. g4 {[%clk 0:00:11.1]} 57... axb4 {[%clk 0:00:18.9]} 58.
axb4 {[%clk 0:00:12]} 58... Kb5 {[%clk 0:00:19.3]} 59. Rd4 {[%clk 0:00:12.4]}
59... b6 {[%clk 0:00:19.4]} 60. cxb6 {[%clk 0:00:12.3]} 60... Kxb6 {[%clk
0:00:20.3]} 61. g5 {[%clk 0:00:12.8]} 61... Rf1+ {[%clk 0:00:20.6]} 62. Rf4
{[%clk 0:00:12.8]} 62... Re1 {[%clk 0:00:20.2]} 63. g6 {[%clk 0:00:12.9]} 63...
Re7 {[%clk 0:00:20.1]} 64. Kf6 {[%clk 0:00:12.9]} 64... Rc7 {[%clk 0:00:18.5]}
65. g7 {[%clk 0:00:13.2]} 1-0

[Event "*** Titled Tuesday Blitz"]
[Site "Chess.com"]
[Date "2020.11.03"]
[Round "2"]
[White "Jungle_Jaguar"]
[Black "Sibelephant"]
[Result "0-1"]
[WhiteElo "2629"]
[BlackElo "3089"]
[TimeControl "180+1"]
[EndTime "10:20:03 PST"]
[Termination "Sibelephant won by checkmate"]

1. e4 {[%clk 0:03:00.9]} 1... c5 {[%clk 0:02:58.9]} 2. Nf3 {[%clk 0:03:01]} 2...
e6 {[%clk 0:02:58.9]} 3. d4 {[%clk 0:03:01.1]} 3... cxd4 {[%clk 0:02:59.3]} 4.
Nxd4 {[%clk 0:03:02]} 4... a6 {[%clk 0:02:59.3]} 5. c4 {[%clk 0:03:02.3]} 5...
Nf6 {[%clk 0:02:58.9]} 6. Nc3 {[%clk 0:03:02.8]} 6... Qc7 {[%clk 0:02:59.1]} 7.
Be2 {[%clk 0:03:03.3]} 7... b6 {[%clk 0:02:59.1]} 8. O-O {[%clk 0:02:58.8]} 8...
Bb7 {[%clk 0:02:59]} 9. Qd3 {[%clk 0:02:59.3]} 9... Be7 {[%clk 0:02:55.2]} 10.
f4 {[%clk 0:02:58.3]} 10... d6 {[%clk 0:02:54.1]} 11. Be3 {[%clk 0:02:55.1]}
11... Nbd7 {[%clk 0:02:54]} 12. b4 {[%clk 0:02:55.2]} 12... O-O {[%clk
0:02:54.2]} 13. Rac1 {[%clk 0:02:53.7]} 13... Rac8 {[%clk 0:02:52.5]} 14. g4
{[%clk 0:02:53.6]} 14... g6 {[%clk 0:02:34.5]} 15. h4 {[%clk 0:02:27.8]} 15...
e5 {[%clk 0:02:18.1]} 16. Nd5 {[%clk 0:02:23.1]} 16... Qd8 {[%clk 0:02:18.2]}
17. Nb3 {[%clk 0:02:10.6]} 17... Nxd5 {[%clk 0:02:15.9]} 18. exd5 {[%clk
0:01:53.9]} 18... Bxh4 {[%clk 0:02:15.4]} 19. f5 {[%clk 0:01:52.5]} 19... Bg5
{[%clk 0:02:10.1]} 20. Nd2 {[%clk 0:01:52.4]} 20... Bxe3+ {[%clk 0:01:39.4]} 21.
Qxe3 {[%clk 0:01:53.3]} 21... b5 {[%clk 0:01:39.9]} 22. Ne4 {[%clk 0:01:47.5]}
22... Nf6 {[%clk 0:01:39]} 23. Nxf6+ {[%clk 0:01:38.7]} 23... Qxf6 {[%clk
0:01:38.4]} 24. g5 {[%clk 0:01:39.3]} 24... Qd8 {[%clk 0:01:32.5]} 25. f6 {[%clk
0:01:39.6]} 25... Qd7 {[%clk 0:00:52.1]} 26. Qg3 {[%clk 0:01:15.9]} 26... Rxc4
{[%clk 0:00:46.1]} 27. Rxc4 {[%clk 0:00:23.4]} 27... bxc4 {[%clk 0:00:46.1]} 28.
Qh4 {[%clk 0:00:16.1]} 28... h5 {[%clk 0:00:46]} 29. Bxh5 {[%clk 0:00:16.1]}
29... gxh5 {[%clk 0:00:38.8]} 30. Qxh5 {[%clk 0:00:16.5]} 30... Bc8 {[%clk
0:00:26.6]} 31. Qh6 {[%clk 0:00:06.9]} 31... Qg4+ {[%clk 0:00:26.3]} 32. Kh2
{[%clk 0:00:07.6]} 32... Qh3+ {[%clk 0:00:26.5]} 33. Qxh3 {[%clk 0:00:06.8]}
33... Bxh3 {[%clk 0:00:27.1]} 34. Kxh3 {[%clk 0:00:07.7]} 34... Kh7 {[%clk
0:00:27.7]} 35. Kg4 {[%clk 0:00:04.8]} 35... Rc8 {[%clk 0:00:24.8]} 36. Rh1+
{[%clk 0:00:03.1]} 36... Kg8 {[%clk 0:00:24.9]} 37. Kf5 {[%clk 0:00:04]} 37...
c3 {[%clk 0:00:23]} 38. Rc1 {[%clk 0:00:04.5]} 38... c2 {[%clk 0:00:22.8]} 39.
g6 {[%clk 0:00:04.6]} 39... fxg6+ {[%clk 0:00:15.8]} 40. Kxg6 {[%clk 0:00:05]}
40... Rc3 {[%clk 0:00:15.3]} 41. f7+ {[%clk 0:00:05.6]} 41... Kf8 {[%clk
0:00:15.1]} 42. Kf6 {[%clk 0:00:06.5]} 42... e4 {[%clk 0:00:15.6]} 43. Ke6
{[%clk 0:00:06.6]} 43... e3 {[%clk 0:00:15.9]} 44. Kxd6 {[%clk 0:00:07.2]} 44...
e2 {[%clk 0:00:16.3]} 45. a4 {[%clk 0:00:02.5]} 45... Kxf7 {[%clk 0:00:15.9]}
46. b5 {[%clk 0:00:02.7]} 46... axb5 {[%clk 0:00:08.8]} 47. axb5 {[%clk
0:00:03.6]} 47... Rb3 {[%clk 0:00:04]} 48. Kc6 {[%clk 0:00:04.1]} 48... Rb1
{[%clk 0:00:04.2]} 49. Rxc2 {[%clk 0:00:04.7]} 49... e1=Q {[%clk 0:00:03.9]} 50.
d6 {[%clk 0:00:05]} 50... Qe4+ {[%clk 0:00:03.9]} 51. Kd7 {[%clk 0:00:04.4]}
51... Qxc2 {[%clk 0:00:04.8]} 52. Kd8 {[%clk 0:00:04.8]} 52... Rxb5 {[%clk
0:00:04.3]} 53. Kd7 {[%clk 0:00:05.5]} 53... Rb7+ {[%clk 0:00:04]} 54. Kd8
{[%clk 0:00:05.8]} 54... Qf5 {[%clk 0:00:03.9]} 55. d7 {[%clk 0:00:06]} 55...
Qxd7# {[%clk 0:00:04.8]} 0-1